Cogmind - Beta 14 @@@ ROGUE MODE // 2024.09.28 @ 22:39:23 Player: Togure Result: Destroyed by G-34 Mercenary with Small Laser Performance ------------- Evolutions (0) 0 Regions Visited (1) 200 Robots Destroyed (11) 55 Value Destroyed (158) 158 Prototype IDs (0) 0 Alien Tech Used (0) 0 Bonus (0) 0 TOTAL SCORE: 413 Bonus ------- None Cogmind --------- Core Integrity 0/250 Matter 300/300 Energy 100/100 System Corruption 0% Temperature Cool (6) Movement Core (1350) Ox26 Location -10/Materials Parts ------- > --- POWER (1) -------- (None) > --- PROPULSION (2) --- (None) > --- UTILITY (2) ------ Huge Storage Unit > --- WEAPON (2) ------- (None) > --- INVENTORY (25) --- Ion Engine Small Storage Unit Huge Storage Unit Small Battery (100) Medium Laser Small Laser Small Laser Light Assault Rifle Light Assault Rifle Grenade Launcher Mining Laser Peak State ------------ > --- POWER ------------ Light Ion Engine > --- PROPULSION ------- Aluminum Leg Aluminum Leg > --- UTILITY ---------- Huge Storage Unit Terrain Scanner > --- WEAPON ----------- Assault Rifle Light Assault Rifle > --- INVENTORY -------- Ion Engine Small Storage Unit Huge Storage Unit Small Battery Medium Laser Small Laser Small Laser Light Assault Rifle Grenade Launcher Mining Laser [Rating: 8] Favorites ----------- Power Light Ion Engine Engine Light Ion Engine Propulsion Aluminum Leg Leg Aluminum Leg Utility Terrain Scanner Device Terrain Scanner Storage Huge Storage Unit Weapon Assault Rifle Ballistic Gun Assault Rifle Build | -11 -10 ------- Run | Yrd Mat Slots Evolved . | . . Power . | . . Propulsion . | . . Utility . | . . Weapon . | . . Parts Attached 9 | 5 4 Power 2 | 1 1 Engine 2 | 1 1 Core . | . . Reactor . | . . Propulsion 2 | 2 . Treads . | . . Leg 2 | 2 . Wheel . | . . Hover . | . . Flight . | . . Utility 3 | 1 2 Device 1 | . 1 Storage 2 | 1 1 Processor . | . . Hackware . | . . Protection . | . . Artifact . | . . Weapon 2 | 1 1 Energy Gun . | . . Energy Cannon . | . . Ballistic Gun 2 | 1 1 Ballistic Cannon . | . . Launcher . | . . Special Weapon . | . . Impact Weapon . | . . Slashing Weapon . | . . Piercing Weapon . | . . Special Melee Weapon . | . . Unidentified Prototypes . | . . Parts Lost 6 | . 6 Power 1 | . 1 Propulsion 2 | . 2 Utility 1 | . 1 Weapon 2 | . 2 Highest Loss Streak 2 | . 2 To Critical Strikes . | . . Average Slot Usage (%) 79 | . 79 Engine 9 | . 9 Leg 21 | . 21 Device 9 | . 9 Storage 14 | . 14 Ballistic Gun 23 | . 23 Peak Build Rating 8 | 5 8 Average Rating 5 | 3 5 On Entrance 2 | . 5 Naked Turns . | . . Heaviest Build 87 | 12 87 Greatest Support 20 | 20 20 Greatest Overweight (x) 27 | . 27 Average Overweight (x) 1 | . 1 Largest Inventory Capacity 25 | 8 25 Average Capacity 18 | 6 18 Most Carried 11 | 5 11 Average Carried 7 | 2 7 Final Capacity 25 | 8 25 Final Carried 11 | 2 11 Class Distribution -------------------- 100% | Mutant Dominant Class ---------------- Mutant | -10/Materials Resources | -11 -10 ----------- Run | Yrd Mat Matter Collected 387 | 198 189 Remotely . | . . Salvage Created 237 | . 237 Parts 16 | . 16 Haulers Intercepted . | . . Recyclers Shooed . | . . Parts Field Recycled . | . . Retrieved Matter . | . . Parts Self-Destructed . | . . Prevented . | . . Kills | -11 -10 ------- Run | Yrd Mat Combat Hostiles Destroyed 11 | . 11 Guns 11 | . 11 Classes Destroyed 2 | . 2 Swarmer 9 | . 9 Grunt 2 | . 2 Best Kill Streak 3 | . 3 Combat Bots Only 3 | . 3 Max Kills in Single Turn 1 | . 1 Gunslinging . | . . Exploded . | . . Melee . | . . Uniques/NPCs Destroyed . | . . Combat | -11 -10 -------- Run | Yrd Mat Hostile Shots Fired 108 | . 108 Missed 21 | . 21 Damage Taken 778 | . 778 Core 253 | . 253 Absorbed by Shields . | . . Core Remaining (%) 100 | 100 . Volleys Fired 34 | . 34 Largest 2 | . 2 Hottest 40 | . 40 Shots Fired 55 | . 55 Gun 55 | . 55 Cannon . | . . Launcher . | . . Special . | . . Kinetic 55 | . 55 Thermal . | . . Explosive . | . . Electromagnetic . | . . Robot Hit Streak 5 | . 5 Robot Miss Streak 4 | . 4 Penetration Max . | . . Secondary Targets 2 | . 2 Max Gunslinging Chain 1 | . 1 Shots Hit Robots 31 | . 31 Core Hits 16 | . 16 Critical Kills . | . . Critical Parts Destroyed 1 | . 1 Critical Strikes 1 | . 1 Destroy 1 | . 1 Melee Attacks . | . . Impact . | . . Slashing . | . . Piercing . | . . Sneak Attacks . | . . Combat Hostiles . | . . Follow-up Attacks . | . . Damage Inflicted 350 | . 350 Guns 341 | . 341 Cannons . | . . Explosions . | . . Melee . | . . Ramming 9 | . 9 Kinetic 341 | . 341 Thermal . | . . Explosive . | . . Electromagnetic . | . . Impact . | . . Slashing . | . . Piercing . | . . Highest Corruption . | . . Average Corruption . | . . Corruption Purged . | . . Corruption Blocked . | . . Overload Shots . | . . Overflow Damage . | . . Projectiles . | . . Explosions . | . . Melee . | . . Knockbacks . | . . Impact . | . . Kinetic . | . . Secondary . | . . Self-Inflicted Damage . | . . Shots . | . . Rammed . | . . Targets Rammed 1 | . 1 Kicked 1 | . 1 Crushed . | . . Highest Temperature 1 | . 1 Average Temperature 1 | . 1 Received Heat Transfer 174 | . 174 Siege Activations . | . . Robots Corrupted . | . . Combat Hostiles . | . . Parts Fried . | . . Impact Corruptions . | . . Robots Melted . | . . Combat Hostiles . | . . Parts Melted . | . . Heat Transferred . | . . Parts Sabotaged . | . . Parts Stolen . | . . Parts Stripped . | . . Power Chain Reactions . | . . Alert | -11 -10 ------- Run | Yrd Mat Peak Influence 195 | . 195 Initial . | . . Average 92 | . 97 Maximum Alert Level . | . . Low Security (%) 100 | 100 100 Level 1 . | . . Level 2 . | . . Level 3 . | . . Level 4 . | . . Level 5 . | . . High Security . | . . Max Security . | . . Squads Dispatched 2 | . 2 Investigation . | . . Extermination . | . . Reinforcement 2 | . 2 Assault . | . . Garrison . | . . Intercept . | . . Searches Triggered . | . . Construction Impeded . | . . Haulers Reinforced . | . . Active Scanning Responses . | . . Cargo Convoy Interrupts . | . . Stealth | -11 -10 --------- Run | Yrd Mat Distress Signals 9 | . 9 Communications Jammed . | . . Distress Signals . | . . Times Spotted 23 | . 23 Peak Tracking Total 4 | . 4 Tactical Retreats 5 | . 5 Traps | -11 -10 ------- Run | Yrd Mat Traps Triggered . | . . Indirectly . | . . Trap Hack Attempts . | . . Triggered . | . . Disarmed . | . . Reprogrammed . | . . Reused . | . . Traps Extracted . | . . Installed . | . . Triggered . | . . Machines | -11 -10 ---------- Run | Yrd Mat Machines Disabled . | . . Max in Single Turn . | . . Machines Repaired . | . . Machines Dismantled . | . . Machines Sabotaged . | . . Overloaded Fab Kills . | . . Hacking | -11 -10 --------- Run | Yrd Mat Machines Accessed 1 | . 1 Terminals . | . . Fabricators . | . . Repair Stations . | . . Recycling Units 1 | . 1 Scanalyzers . | . . Garrison Access . | . . Total Hacks 1 | . 1 Successful 1 | . 1 Failed . | . . Catastrophic . | . . Database Lockouts . | . . Manual . | . . Terminals . | . . Fabricators . | . . Repair Stations . | . . Recycling Units 1 | . 1 Scanalyzers . | . . Garrison Access . | . . Terminal Hacks . | . . Fabricator Hacks . | . . Repair Station Hacks . | . . Recycling Unit Hacks 1 | . 1 Report Inventory 1 | . 1 Scanalyzer . | . . Garrison Access Hacks . | . . Unauthorized Hacks . | . . Terminals . | . . Fabricators . | . . Repair Stations . | . . Recycling Units . | . . Scanalyzers . | . . Garrison Access . | . . Data Cores Recovered . | . . Used . | . . Hacking Detections . | . . Full Trace Events . | . . Feedback Events . | . . Feedback Blocked . | . . Robot Schematics Acquired . | . . Robots Built . | . . Authchips . | . . Time . | . . Total Robot Build Rating . | . . Part Schematics Acquired . | . . Parts Built . | . . Authchips . | . . Time . | . . Total Part Build Rating . | . . Parts Repaired . | . . Time . | . . Parts Recycled . | . . Recycled Matter . | . . Retrieved Matter . | . . Retrieved Components . | . . Parts Scanalyzed . | . . Part Schematics Acquired . | . . Parts Damaged . | . . Bothacking | -11 -10 ------------ Run | Yrd Mat Used RIF Installer . | . . Robots Hacked . | . . Non-combat . | . . Combat . | . . Robot Hacks Applied . | . . Relay Couplers Released . | . . Fabnet Peak Effective % . | . . Robots Rewired . | . . Allies Hacked . | . . Hacks Repelled . | . . Allies | -11 -10 -------- Run | Yrd Mat Total Allies . | . . Largest Group . | . . Highest-Rated Group . | . . Highest-Rated Ally . | . . Total Orders . | . . Ally Attacks . | . . Total Damage . | . . Kills . | . . Allies Corrupted . | . . Allies Melted . | . . Intel | -11 -10 ------- Run | Yrd Mat Robot Analysis Total . | . . Derelict Logs Recovered . | . . Drone Launches . | . . Drone Recoveries . | . . Exploration | -11 -10 ------------- Run | Yrd Mat Turns Passed 998 | 46 952 Spaces Moved 379 | 38 341 Core 27 | 16 11 Treads . | . . Legs 352 | 22 330 Wheels . | . . Hover . | . . Flight . | . . Fastest Speed 50 | 50 120 Average Speed 222 | 90 237 Slowest Speed 1400 | 120 1400 Overloaded Moves . | . . Propulsion Burnouts . | . . Robots Hopped . | . . Cave-ins Triggered . | . . Exploration Rate (%) 39 | 4 74 Regions Visited 1 Branch Regions . Pre-discovered Areas . | . . Known Exits Taken . | . . Unknown Exits Taken 1 | 1 . Scrap Searched . | . . Spaces Dug . | . . Terrain Destroyed . | . . Melee . | . . Projectile . | . . AOE . | . . Terrain Rammed . | . . Walls Destroyed . | . . Machines Disabled . | . . Actions | -11 -10 --------- Run | Yrd Mat Total 490 | 51 439 Wait 47 | . 47 Move 378 | 37 341 Hop . | . . Pick Up 19 | 8 11 Fast Attach . | . . Attach 8 | 5 3 Detach 1 | . 1 Swap 1 | . 1 Drop 1 | 1 . Fire 34 | . 34 Melee . | . . Ram . | . . Kick 1 | . 1 Crush . | . . Escape Stasis . | . . Rewire . | . . Trap . | . . Miscellaneous . | . . Route ------- -11/Scrapyard -10/Materials (discovered 5 exits: [*Mat x3] / [*Min x2]) History --------- Turn | Location | Event 3 | -11/Scrapyard | Discovered new exit (range 15) 47 | -11/Scrapyard | Entered Materials 215 | -10/Materials | Discovered new exit (range 15) 216 | -10/Materials | Discovered new exit (range 6) 246 | -10/Materials | Discovered new exit (range 16) 303 | -10/Materials | Build established: Mutant 361 | -10/Materials | Discovered new exit (range 7) 811 | -10/Materials | Discovered new exit (range 13) 843 | -10/Materials | Core integrity fell below 50% 979 | -10/Materials | Core integrity fell below 20% 999 | -10/Materials | Destroyed by G-34 Mercenary with Small Laser Last Messages --------------- 00692_ W-16 Scout sends out distress signal. 00698_ R-06 Scavenger collects Aluminum Leg. 00715_ S-10 Pest destroyed. 00715_ Switching to secondary target: S-10 Pest. 00717_ S-10 Pest destroyed. 00720_ Acquired 10 matter. 00734_ Acquired Lgt. Assault Rifle. 00742_ Acquired 16 matter. 00811_ EXIT=FOUND 00838_ Assault Rifle destroyed. 00844_ Aluminum Leg destroyed. 00845_ G-34 Mercenary suffers critical hit (Destroy). 00845_ Destroyed Heat Sink. 00853_ G-34 Mercenary destroyed. 00868_ Acquired 6 matter. 00880_ R-06 Scavenger collects Aluminum Leg. 00946_ K-01 Serf collects debris. 00976_ Lgt. Assault Rifle destroyed. 00984_ W-16 Scout sends out distress signal. 00991_ Terrain Scanner destroyed. Map ----- +----------------------------------------------------+ | ## ############### # """ # | | ## # # """ # | | #### ## + + """ # | | #""" # # # # | | #" # # ###### # """ # | | #"! # # #?? ?# # """ # | | #"" < # + # + """ # | | #" #############^^^ #?# ###### # | | #" #########???# #?# #????#######? | | #""" # #????# #?##?#???#????#?? | | #### ## #????# ##?#?##??##??#??? | | ???# ## ###### ##############??# | | #??# ## + #???# | | ???# ## ######+###### #???# | | ??## ## #?# * ### T #?#?? | | ### ##+####### """ #?# != ##??? | | ##??# "Y #?# != #?#?? | | T #??## """ #?# = ##??? | | ##??# ### %#???? | | +## ## #???#########?# ###/##### | | ??######## # ??????#???## #?# #? | | ?????????# #? ??" ?#??##### #?# ## | | ?????????# # ""???????#???# ###^^ ## | | ?????????# # """ ? ?#????##=[ /[=^ #? | | ??????????^ # ########/##### #? | | ?????????? # g/ @ "T"w ! # #? | | ?????????? + !! #### g # ^ #? | | ?????????? #k !!????##] # #? | | ?????????? # ??? ???# ] # #? | | ??????????## ###????????#################? | | ???????????? #??????##?#??#####?###?#????? | | ?????????????????????????????????###?????? | | ??????????????#??????????#??#?#??##??????# | | ?????????????????#??????#??????????????#?? | | ???????????????????? ??????????????#?????? | | ???????????????????????????< ???#????????? | | ??????????????????????????????#??????????? | | ???????????????????????????#????????#????? | | ???????????????????????#?? ??????????????? | | ?????????????????????????????????????????? | | ?????????????????????????????????????????? | | ?????????????????????????????????????????? | | ?????????????????????????????????????????? | | ?????????????????????????????????????????? | | | | | | | | | | | | | +----------------------------------------------------+ Best States ------------- Heat Dissipation 25 Energy Generation 10 Energy Capacity 250 Matter Stores 300 Matter Capacity 300 Sight Range 16 Terrain Scan Range 14 Terrain Scan Density 10 Evasion (%) 55 Item Schematics ----------------- None Robot Schematics ------------------ None Fabricated ------------ Nothing Alien Tech Used ----------------- None Achievements -------------- None Challenges ------------ None Game ------ Seed LinearHeavyCharge Manual? 0 Play Time 00:11:55 Cumulative 28.2 hours Start 2024.09.28 @ 22:27:48 End 2024.09.28 @ 22:39:23 Sessions 1 Manual Loads 0 Difficulty Rogue Special Mode None Game No. 54 Rogue 54 Adventurer 0 Explorer 0 Win Type - Total 0 Types 0/0/0/0/0/0/0/0/0 Lore% 15 Gallery% 17 Achievement% 19 Wizard Run 0 Options --------- Layout 1 ASCII 0 Keyboard 0 Movement Numpad Keybinds 0 Fullscreen 0 Font 28/SmallcapsGlow Map View 59x39 Zoom Use 0% Tactical HUD 1 Map Filters NONE Filters NONE Steam 1 RUN: a030714c-9c18-4317-997d-f1913f4f8a78